[Event "Championnat d'Europe de Blitz"]
[Date "2024.12.09"]
[White "Subelj, Jan"]
[Black "Gaponenko, Inna"]
[WhiteElo "2526"]
[BlackElo "2343"]
[Round "6.35"]
[Result "1-0"]
[TimeControl "180+2"]

1. Nf3 {[%clk 00:03:03]} c5 {[%emt 00:00:03] [%clk 00:03:04]} 2. e4 {[%clk
00:03:04]} g6 {[%clk 00:03:05]} 3. c3 {[%emt 00:00:02] [%clk 00:03:05]} Nf6
{[%emt 00:00:03] [%clk 00:03:03]} 4. e5 {[%emt 00:00:04] [%clk 00:03:03]} Nd5
{[%clk 00:03:04]} 5. Bc4 {[%emt 00:00:02] [%clk 00:03:03]} Nb6 {[%emt 00:00:02]
[%clk 00:03:03]} 6. Bb3 {[%emt 00:00:01] [%clk 00:03:04]} Bg7 {[%emt 00:00:02]
[%clk 00:03:04]} 7. O-O {[%emt 00:00:02] [%clk 00:03:04]} O-O {[%emt 00:00:04]
[%clk 00:03:01]} 8. d4 {[%emt 00:00:01] [%clk 00:03:05]} cxd4 {[%emt 00:00:03]
[%clk 00:03:01]} 9. cxd4 {[%emt 00:00:01] [%clk 00:03:06]} d6 {[%clk 00:03:02]}
10. exd6 {[%emt 00:00:06] [%clk 00:03:01]} Qxd6 {[%emt 00:00:01] [%clk
00:03:03]} 11. Nc3 {[%emt 00:00:01] [%clk 00:03:02]} Nc6 {[%emt 00:00:06] [%clk
00:02:59]} 12. Nb5 {[%clk 00:03:03]} Qd8 {[%emt 00:00:09] [%clk 00:02:52]} 13.
Bf4 {[%emt 00:00:02] [%clk 00:03:04]} Bg4 {[%emt 00:00:01] [%clk 00:02:53]} 14.
h3 {[%emt 00:00:09] [%clk 00:02:56]} Bxf3 {[%emt 00:00:07] [%clk 00:02:48]} 15.
Qxf3 {[%emt 00:00:02] [%clk 00:02:57]} Nxd4 {[%emt 00:00:01] [%clk 00:02:49]}
16. Nxd4 {[%emt 00:00:01] [%clk 00:02:58]} Qxd4 {[%emt 00:00:02] [%clk
00:02:49]} 17. Rad1 {[%clk 00:02:59]} Qxb2 {[%emt 00:00:05] [%clk 00:02:46]} 18.
Qxb7 {[%emt 00:00:02] [%clk 00:02:59]} e6 {[%emt 00:00:03] [%clk 00:02:45]} 19.
Rd2 {[%emt 00:00:08] [%clk 00:02:53]} Qc3 {[%emt 00:00:08] [%clk 00:02:39]} 20.
Rfd1 {[%emt 00:00:02] [%clk 00:02:53]} Qc8 {[%emt 00:00:45] [%clk 00:01:56]} 21.
Qe4 {[%emt 00:00:07] [%clk 00:02:48]} Qa6 {[%emt 00:00:35] [%clk 00:01:24]} 22.
h4 {[%emt 00:00:10] [%clk 00:02:40]} h5 {[%emt 00:00:04] [%clk 00:01:21]} 23.
Bg5 {[%emt 00:00:10] [%clk 00:02:32]} Rac8 {[%emt 00:00:05] [%clk 00:01:19]} 24.
Rd6 {[%emt 00:00:06] [%clk 00:02:28]} Qa3 {[%emt 00:00:07] [%clk 00:01:14]} 25.
Bxe6 {[%emt 00:00:18] [%clk 00:02:12]} Rc7 {[%emt 00:00:33] [%clk 00:00:43]} 26.
Bb3 {[%emt 00:00:04] [%clk 00:02:10]} Qc5 {[%emt 00:00:22] [%clk 00:00:23]} 27.
Rxg6 {[%emt 00:00:08] [%clk 00:02:03]} Nc4 {[%emt 00:00:04] [%clk 00:00:21]} 28.
Rd5 {[%emt 00:00:25] [%clk 00:01:41]} Qb4 {[%emt 00:00:15] [%clk 00:00:08]} 29.
Rxg7+ {[%emt 00:00:04] [%clk 00:01:38]} Kxg7 {[%emt 00:00:02] [%clk 00:00:08]}
30. Bh6+ {[%emt 00:00:07] [%clk 00:01:32]} Kxh6 {[%emt 00:00:05] [%clk
00:00:06]} 31. Qf4+ {[%emt 00:00:01] [%clk 00:01:33]} 1-0

[Site "Europe Echecs"]

[Event "Championnat d'Europe de Blitz"]
[Date "2024.12.09"]
[White "Trapp, Maximilian"]
[Black "Kuzubov, Yuriy"]
[WhiteElo "2050"]
[BlackElo "2595"]
[Round "6.36"]
[Result "0-1"]
[TimeControl "180+2"]

1. d4 {[%clk 00:03:03]} Nf6 {[%emt 00:00:03] [%clk 00:03:03]} 2. Nf3 {[%clk
00:03:04]} e6 {[%emt 00:00:02] [%clk 00:03:03]} 3. Bf4 {[%emt 00:00:01] [%clk
00:03:05]} d5 {[%emt 00:00:01] [%clk 00:03:04]} 4. e3 {[%emt 00:00:02] [%clk
00:03:05]} c5 {[%clk 00:03:05]} 5. c3 {[%emt 00:00:01] [%clk 00:03:07]} Nc6
{[%clk 00:03:06]} 6. Be2 {[%emt 00:00:01] [%clk 00:03:07]} Nh5 {[%emt 00:00:06]
[%clk 00:03:01]} 7. Bg3 {[%emt 00:00:02] [%clk 00:03:08]} Qb6 {[%emt 00:00:12]
[%clk 00:02:52]} 8. Qb3 {[%clk 00:03:08]} Nxg3 {[%emt 00:00:03] [%clk 00:02:50]}
9. hxg3 {[%emt 00:00:02] [%clk 00:03:09]} g6 {[%emt 00:00:07] [%clk 00:02:45]}
10. Nbd2 {[%emt 00:00:03] [%clk 00:03:08]} Bd7 {[%emt 00:00:06] [%clk 00:02:41]}
11. O-O {[%emt 00:00:05] [%clk 00:03:05]} Qxb3 {[%emt 00:00:28] [%clk 00:02:15]}
12. Nxb3 {[%emt 00:00:25] [%clk 00:02:42]} cxd4 {[%emt 00:00:31] [%clk
00:01:46]} 13. exd4 {[%emt 00:00:07] [%clk 00:02:37]} b6 {[%emt 00:00:14] [%clk
00:01:34]} 14. Rfe1 {[%emt 00:00:02] [%clk 00:02:38]} Bd6 {[%emt 00:00:18] [%clk
00:01:17]} 15. Nc1 {[%emt 00:00:10] [%clk 00:02:31]} O-O {[%emt 00:00:06] [%clk
00:01:12]} 16. Nd3 {[%emt 00:00:01] [%clk 00:02:32]} Rfc8 {[%emt 00:00:03] [%clk
00:01:11]} 17. Bf1 {[%emt 00:00:02] [%clk 00:02:32]} f6 {[%emt 00:00:08] [%clk
00:01:06]} 18. Nf4 {[%emt 00:00:01] [%clk 00:02:33]} Kf7 {[%emt 00:00:06] [%clk
00:01:02]} 19. Ba6 {[%emt 00:00:02] [%clk 00:02:34]} Rc7 {[%emt 00:00:05] [%clk
00:00:59]} 20. Re2 {[%emt 00:00:04] [%clk 00:02:32]} g5 {[%emt 00:00:07] [%clk
00:00:54]} 21. Nd3 {[%emt 00:00:26] [%clk 00:02:07]} Nb8 {[%emt 00:00:07] [%clk
00:00:49]} 22. Nde5+ {[%emt 00:00:22] [%clk 00:01:47]} fxe5 {[%emt 00:00:02]
[%clk 00:00:49]} 23. dxe5 {[%emt 00:00:09] [%clk 00:01:40]} Be7 {[%emt 00:00:02]
[%clk 00:00:49]} 24. Bd3 {[%emt 00:00:02] [%clk 00:01:40]} Kg7 {[%emt 00:00:05]
[%clk 00:00:46]} 25. g4 {[%emt 00:00:04] [%clk 00:01:38]} Nc6 {[%emt 00:00:08]
[%clk 00:00:40]} 26. g3 {[%emt 00:00:02] [%clk 00:01:39]} Rf8 {[%emt 00:00:01]
[%clk 00:00:40]} 27. Kg2 {[%emt 00:00:01] [%clk 00:01:40]} Be8 {[%emt 00:00:04]
[%clk 00:00:39]} 28. Bb5 {[%emt 00:00:07] [%clk 00:01:35]} Nd8 {[%emt 00:00:13]
[%clk 00:00:28]} 29. Bd3 {[%emt 00:00:18] [%clk 00:01:19]} h6 {[%emt 00:00:06]
[%clk 00:00:23]} 30. Rf1 {[%emt 00:00:08] [%clk 00:01:14]} Bc5 {[%emt 00:00:03]
[%clk 00:00:22]} 31. Nd2 {[%emt 00:00:09] [%clk 00:01:07]} Rcf7 {[%emt 00:00:05]
[%clk 00:00:19]} 32. f3 {[%emt 00:00:03] [%clk 00:01:06]} a5 {[%emt 00:00:02]
[%clk 00:00:20]} 33. Rh1 {[%emt 00:00:06] [%clk 00:01:02]} Nc6 {[%emt 00:00:02]
[%clk 00:00:20]} 34. Bb5 {[%emt 00:00:09] [%clk 00:00:54]} d4 {[%emt 00:00:02]
[%clk 00:00:19]} 35. Ne4 {[%emt 00:00:10] [%clk 00:00:46]} dxc3 {[%emt 00:00:01]
[%clk 00:00:20]} 36. Nf6 {[%emt 00:00:12] [%clk 00:00:36]} Rxf6 {[%emt 00:00:05]
[%clk 00:00:17]} 37. exf6+ {[%emt 00:00:04] [%clk 00:00:35]} Rxf6 {[%emt
00:00:01] [%clk 00:00:17]} 38. bxc3 {[%clk 00:00:36]} Kf8 {[%emt 00:00:02] [%clk
00:00:17]} 39. Rhe1 {[%emt 00:00:02] [%clk 00:00:35]} Ke7 {[%emt 00:00:02] [%clk
00:00:17]} 40. a4 {[%emt 00:00:05] [%clk 00:00:32]} Nd8 {[%emt 00:00:02] [%clk
00:00:16]} 41. c4 {[%emt 00:00:04] [%clk 00:00:31]} Bxb5 {[%emt 00:00:03] [%clk
00:00:15]} 42. cxb5 {[%clk 00:00:32]} Nf7 {[%emt 00:00:01] [%clk 00:00:16]} 43.
Rd1 {[%emt 00:00:04] [%clk 00:00:30]} Nd6 {[%emt 00:00:01] [%clk 00:00:17]} 44.
Rc1 {[%emt 00:00:01] [%clk 00:00:30]} Rf8 {[%emt 00:00:02] [%clk 00:00:17]} 45.
Rcc2 {[%emt 00:00:01] [%clk 00:00:31]} Rd8 {[%emt 00:00:01] [%clk 00:00:18]} 46.
Red2 {[%emt 00:00:03] [%clk 00:00:29]} e5 {[%emt 00:00:02] [%clk 00:00:18]} 47.
Rd5 {[%emt 00:00:01] [%clk 00:00:30]} Ke6 {[%emt 00:00:01] [%clk 00:00:19]} 48.
Rcd2 {[%clk 00:00:31]} Rf8 {[%emt 00:00:01] [%clk 00:00:20]} 49. Re2 {[%emt
00:00:02] [%clk 00:00:32]} Kxd5 {[%emt 00:00:02] [%clk 00:00:19]} 50. Rd2+
{[%emt 00:00:01] [%clk 00:00:33]} Bd4 {[%clk 00:00:20]} 0-1

[Site "Europe Echecs"]

[Event "Championnat d'Europe de Blitz"]
[Date "2024.12.09"]
[White "Kalezic, Blazo"]
[Black "Siekanska, Maria"]
[WhiteElo "2382"]
[BlackElo "2080"]
[Round "6.37"]
[Result "1-0"]
[TimeControl "180+2"]

1. e4 {[%emt 00:00:02] [%clk 00:03:01]} c5 {[%emt 00:00:02] [%clk 00:03:03]} 2.
Nf3 {[%emt 00:00:01] [%clk 00:03:01]} d6 {[%emt 00:00:01] [%clk 00:03:04]} 3. d4
{[%emt 00:00:01] [%clk 00:03:02]} cxd4 {[%emt 00:00:02] [%clk 00:03:05]} 4. Nxd4
{[%emt 00:00:01] [%clk 00:03:02]} Nf6 {[%emt 00:00:02] [%clk 00:03:06]} 5. Nc3
{[%emt 00:00:01] [%clk 00:03:02]} a6 {[%emt 00:00:02] [%clk 00:03:07]} 6. g3
{[%emt 00:00:07] [%clk 00:02:57]} e6 {[%emt 00:00:04] [%clk 00:03:04]} 7. Bg2
{[%emt 00:00:03] [%clk 00:02:56]} Be7 {[%emt 00:00:08] [%clk 00:02:59]} 8. O-O
{[%emt 00:00:03] [%clk 00:02:55]} O-O {[%emt 00:00:02] [%clk 00:02:58]} 9. Nb3
{[%emt 00:00:08] [%clk 00:02:50]} Nc6 {[%emt 00:00:13]} 10. f4 {[%clk 00:02:45]}
Qc7 {[%emt 00:00:17] [%clk 00:02:39]} 11. g4 {[%emt 00:00:04] [%clk 00:02:42]}
b5 {[%emt 00:00:30] [%clk 00:02:12]} 12. g5 {[%emt 00:00:05] [%clk 00:02:38]}
Nd7 {[%emt 00:00:01] [%clk 00:02:13]} 13. a3 {[%emt 00:00:01] [%clk 00:02:39]}
Qb6+ {[%emt 00:00:41] [%clk 00:01:34]} 14. Kh1 {[%emt 00:00:02] [%clk 00:02:38]}
a5 {[%emt 00:00:02] [%clk 00:01:35]} 15. Rf3 {[%emt 00:00:09] [%clk 00:02:31]}
a4 {[%emt 00:00:26] [%clk 00:01:11]} 16. Be3 {[%emt 00:00:11] [%clk 00:02:21]}
Qb7 {[%emt 00:00:22] [%clk 00:00:51]} 17. Nd4 {[%emt 00:00:08] [%clk 00:02:15]}
Nxd4 {[%emt 00:00:03] [%clk 00:00:51]} 18. Bxd4 {[%emt 00:00:05] [%clk
00:02:12]} e5 {[%emt 00:00:03] [%clk 00:00:50]} 19. Nd5 {[%emt 00:00:17] [%clk
00:01:56]} Re8 {[%emt 00:00:22] [%clk 00:00:30]} 20. fxe5 {[%emt 00:00:10] [%clk
00:01:48]} Nxe5 {[%emt 00:00:08] [%clk 00:00:24]} 21. Rg3 {[%emt 00:00:02] [%clk
00:01:47]} Ng6 {[%emt 00:00:19] [%clk 00:00:07]} 22. e5 {[%emt 00:00:28] [%clk
00:01:21]} Qb8 {[%clk 00:00:09]} 23. Bc3 {[%emt 00:00:16] [%clk 00:01:07]} Bb7
{[%emt 00:00:03] [%clk 00:00:09]} 24. Nxe7+ {[%emt 00:00:15] [%clk 00:00:54]}
Rxe7 {[%clk 00:00:10]} 25. exd6 {[%emt 00:00:04] [%clk 00:00:52]} Rd7 {[%emt
00:00:02] [%clk 00:00:10]} 26. Qd4 {[%emt 00:00:02] [%clk 00:00:52]} Bxg2+
{[%emt 00:00:07] [%clk 00:00:06]} 27. Rxg2 {[%emt 00:00:01] [%clk 00:00:53]} Qf8
{[%emt 00:00:01] [%clk 00:00:07]} 28. Bb4 {[%emt 00:00:06] [%clk 00:00:49]} Re8
{[%emt 00:00:03] [%clk 00:00:06]} 29. Rf1 {[%emt 00:00:03] [%clk 00:00:48]} Re6
{[%emt 00:00:02] [%clk 00:00:07]} 30. Qd5 {[%emt 00:00:05] [%clk 00:00:45]} Re5
{[%emt 00:00:02] [%clk 00:00:07]} 31. Qc6 {[%emt 00:00:03] [%clk 00:00:44]} Qe8
{[%emt 00:00:02] [%clk 00:00:08]} 32. Rgf2 {[%emt 00:00:14] [%clk 00:00:32]}
Rxg5 {[%emt 00:00:05] [%clk 00:00:05]} 33. Rxf7 {[%emt 00:00:23] [%clk
00:00:11]} Ne5 {[%clk 00:00:07]} 34. Rf8+ {[%emt 00:00:07] [%clk 00:00:06]} Qxf8
{[%clk 00:00:08]} 35. Rxf8+ {[%clk 00:00:07]} Kxf8 {[%clk 00:00:09]} 36. Qxb5
{[%emt 00:00:02] [%clk 00:00:06]} Kf7 {[%emt 00:00:07] [%clk 00:00:05]} 37. Qd5+
{[%emt 00:00:02] [%clk 00:00:05]} Ke8 {[%emt 00:00:01] [%clk 00:00:06]} 38. Qg8#
{[%emt 00:00:01] [%clk 00:00:05]} 1-0

[Site "Europe Echecs"]

[Event "Championnat d'Europe de Blitz"]
[Date "2024.12.09"]
[White "Samunenkov, Ihor"]
[Black "Iskos, Alexandros"]
[WhiteElo "2543"]
[BlackElo "2132"]
[Round "6.38"]
[Result "1-0"]
[TimeControl "180+2"]

1. d4 {[%emt 00:00:02] [%clk 00:03:02]} Nf6 {[%clk 00:03:04]} 2. Nf3 {[%emt
00:00:02] [%clk 00:03:02]} d5 {[%clk 00:03:05]} 3. c4 {[%emt 00:00:02] [%clk
00:03:01]} e6 {[%clk 00:03:06]} 4. g3 {[%emt 00:00:01] [%clk 00:03:02]} Bb4+
{[%emt 00:00:06] [%clk 00:03:03]} 5. Bd2 {[%emt 00:00:01] [%clk 00:03:02]} a5
{[%emt 00:00:11] [%clk 00:02:54]} 6. Qc2 {[%emt 00:00:02] [%clk 00:03:02]} O-O
{[%emt 00:00:15] [%clk 00:02:42]} 7. Bg2 {[%emt 00:00:02] [%clk 00:03:02]} c5
{[%emt 00:00:01] [%clk 00:02:43]} 8. cxd5 {[%emt 00:00:02] [%clk 00:03:01]} cxd4
{[%emt 00:00:21] [%clk 00:02:24]} 9. a3 {[%emt 00:00:03] [%clk 00:03:01]} Bxd2+
{[%emt 00:00:06] [%clk 00:02:20]} 10. Qxd2 {[%emt 00:00:02] [%clk 00:03:00]}
Qxd5 {[%emt 00:00:25] [%clk 00:01:57]} 11. Qxd4 {[%emt 00:00:03] [%clk
00:03:00]} Nc6 {[%emt 00:00:07] [%clk 00:01:53]} 12. Qxd5 {[%emt 00:00:02] [%clk
00:02:59]} Nxd5 {[%emt 00:00:03] [%clk 00:01:52]} 13. Nbd2 {[%emt 00:00:02]
[%clk 00:02:59]} a4 {[%emt 00:00:38] [%clk 00:01:17]} 14. Rc1 {[%emt 00:00:23]
[%clk 00:02:37]} Nb6 {[%emt 00:00:10] [%clk 00:01:09]} 15. O-O {[%emt 00:00:33]
[%clk 00:02:07]} e5 {[%clk 00:01:11]} 16. Ne4 {[%emt 00:00:16] [%clk 00:01:52]}
f6 {[%emt 00:00:19] [%clk 00:00:54]} 17. Nd6 {[%emt 00:00:12] [%clk 00:01:43]}
Rd8 {[%emt 00:00:07] [%clk 00:00:49]} 18. Rfd1 {[%emt 00:00:02] [%clk 00:01:42]}
Nd4 {[%emt 00:00:16] [%clk 00:00:36]} 19. Nxd4 {[%emt 00:00:13] [%clk 00:01:30]}
Rxd6 {[%emt 00:00:02]} 20. Nb5 {[%emt 00:00:03] [%clk 00:01:28]} Rxd1+ {[%emt
00:00:21] [%clk 00:00:19]} 21. Rxd1 {[%emt 00:00:02] [%clk 00:01:28]} Bd7 {[%emt
00:00:01] [%clk 00:00:20]} 22. Bxb7 {[%emt 00:00:50] [%clk 00:00:40]} Rb8 {[%emt
00:00:01] [%clk 00:00:22]} 23. Nd6 {[%emt 00:00:02] [%clk 00:00:39]} Be6 {[%emt
00:00:10] [%clk 00:00:14]} 24. Rc1 {[%emt 00:00:17] [%clk 00:00:24]} Rd8 {[%emt
00:00:04] [%clk 00:00:11]} 25. Rc6 {[%emt 00:00:06] [%clk 00:00:19]} Nd5 {[%emt
00:00:07] [%clk 00:00:07]} 26. Bc8 {[%emt 00:00:06] [%clk 00:00:16]} Bxc8 {[%emt
00:00:03]} 27. Nxc8 {[%emt 00:00:01] [%clk 00:00:15]} Kf7 {[%emt 00:00:05] [%clk
00:00:04]} 28. Nd6+ {[%emt 00:00:09] [%clk 00:00:09]} Kg6 {[%emt 00:00:02] [%clk
00:00:03]} 29. e4 {[%emt 00:00:05] [%clk 00:00:06]} Ne7 {[%clk 00:00:05]} 30.
Ra6 {[%emt 00:00:01] [%clk 00:00:06]} Rb8 {[%clk 00:00:06]} 31. Rxa4 {[%emt
00:00:02] [%clk 00:00:06]} Rxb2 {[%clk 00:00:08]} 32. Rc4 {[%emt 00:00:03] [%clk
00:00:05]} Ra2 {[%emt 00:00:02] [%clk 00:00:08]} 33. a4 {[%emt 00:00:01] [%clk
00:00:06]} f5 {[%emt 00:00:02] [%clk 00:00:08]} 34. Rc7 {[%emt 00:00:02] [%clk
00:00:05]} Kf6 {[%emt 00:00:03] [%clk 00:00:08]} 35. exf5 {[%emt 00:00:01] [%clk
00:00:05]} Nxf5 {[%emt 00:00:02] [%clk 00:00:08]} 36. Nxf5 {[%emt 00:00:01]
[%clk 00:00:06]} Kxf5 {[%clk 00:00:10]} 37. Rxg7 {[%emt 00:00:02] [%clk
00:00:06]} Rxa4 {[%clk 00:00:11]} 38. Rxh7 {[%emt 00:00:02] [%clk 00:00:06]} e4
{[%clk 00:00:12]} 39. Rf7+ {[%emt 00:00:03] [%clk 00:00:05]} Kg5 {[%emt
00:00:01] [%clk 00:00:12]} 40. Kg2 {[%emt 00:00:02] [%clk 00:00:05]} Ra2 {[%emt
00:00:02] [%clk 00:00:13]} 41. Re7 {[%clk 00:00:06]} Ra4 {[%emt 00:00:01] [%clk
00:00:14]} 42. h4+ {[%emt 00:00:02] [%clk 00:00:06]} Kf6 {[%clk 00:00:15]} 43.
Re8 {[%emt 00:00:01] [%clk 00:00:07]} Kf7 {[%clk 00:00:17]} 44. Re5 {[%emt
00:00:01] [%clk 00:00:07]} Kf6 {[%clk 00:00:18]} 45. Rb5 {[%clk 00:00:08]} Ra2
{[%emt 00:00:03] [%clk 00:00:18]} 46. Rb3 {[%clk 00:00:09]} Ke5 {[%emt 00:00:02]
[%clk 00:00:18]} 47. Re3 {[%emt 00:00:04] [%clk 00:00:07]} Kf5 {[%emt 00:00:02]
[%clk 00:00:18]} 48. Re1 {[%emt 00:00:02] [%clk 00:00:07]} Rb2 {[%emt 00:00:03]
[%clk 00:00:18]} 49. Kg1 {[%emt 00:00:01] [%clk 00:00:07]} Ra2 {[%emt 00:00:01]
[%clk 00:00:19]} 50. Kf1 {[%emt 00:00:03] [%clk 00:00:06]} Rb2 {[%clk 00:00:21]}
51. Re2 {[%emt 00:00:01] [%clk 00:00:07]} Rb1+ {[%clk 00:00:22]} 52. Kg2 {[%clk
00:00:08]} Rb3 {[%clk 00:00:24]} 53. Ra2 {[%emt 00:00:02] [%clk 00:00:07]} Rb4
{[%emt 00:00:18] [%clk 00:00:08]} 54. Ra5+ {[%emt 00:00:02] [%clk 00:00:07]} Kg6
{[%clk 00:00:09]} 55. g4 {[%emt 00:00:02] [%clk 00:00:08]} e3 {[%emt 00:00:06]
[%clk 00:00:05]} 56. Rg5+ {[%emt 00:00:01] [%clk 00:00:08]} Kf6 {[%clk
00:00:07]} 57. fxe3 {[%emt 00:00:01] [%clk 00:00:09]} Rb3 {[%emt 00:00:02] [%clk
00:00:07]} 58. Kf3 {[%emt 00:00:02] [%clk 00:00:10]} Rb1 {[%clk 00:00:08]} 59.
Rf5+ {[%clk 00:00:10]} Kg6 {[%clk 00:00:09]} 60. h5+ {[%emt 00:00:01] [%clk
00:00:11]} Kg7 {[%clk 00:00:11]} 61. e4 {[%emt 00:00:03] [%clk 00:00:10]} Rf1+
{[%clk 00:00:12]} 62. Kg3 {[%emt 00:00:01] [%clk 00:00:11]} Rg1+ {[%clk
00:00:13]} 63. Kh4 {[%emt 00:00:01] [%clk 00:00:12]} Re1 {[%emt 00:00:01] [%clk
00:00:14]} 64. e5 {[%emt 00:00:01] [%clk 00:00:13]} Re2 {[%emt 00:00:02] [%clk
00:00:14]} 65. Kg5 {[%emt 00:00:01] [%clk 00:00:13]} Ra2 {[%clk 00:00:15]} 66.
h6+ {[%emt 00:00:02] [%clk 00:00:14]} Kh7 {[%emt 00:00:01] [%clk 00:00:16]} 67.
Rf7+ {[%emt 00:00:01] [%clk 00:00:14]} Kg8 {[%clk 00:00:17]} 68. Kg6 {[%emt
00:00:04] [%clk 00:00:13]} Ra6+ {[%clk 00:00:19]} 69. Rf6 {[%emt 00:00:01] [%clk
00:00:14]} Ra5 {[%emt 00:00:04] [%clk 00:00:17]} 70. h7+ {[%emt 00:00:01] [%clk
00:00:14]} 1-0

[Site "Europe Echecs"]

[Event "Championnat d'Europe de Blitz"]
[Date "2024.12.09"]
[White "Schneider, Ilja"]
[Black "Qorri, Fatmir"]
[WhiteElo "2414"]
[BlackElo "1995"]
[Round "6.39"]
[Result "1-0"]
[TimeControl "180+2"]

1. e4 {[%emt 00:00:02] [%clk 00:03:02]} e6 {[%emt 00:00:02] [%clk 00:03:02]} 2.
d4 {[%emt 00:00:01] [%clk 00:03:03]} d5 {[%clk 00:03:03]} 3. Bd3 {[%clk
00:03:04]} dxe4 {[%emt 00:00:02] [%clk 00:03:02]} 4. Bxe4 {[%emt 00:00:01] [%clk
00:03:05]} Nf6 {[%clk 00:03:04]} 5. Bf3 {[%clk 00:03:06]} Be7 {[%emt 00:00:03]
[%clk 00:03:03]} 6. Ne2 {[%emt 00:00:03] [%clk 00:03:05]} O-O {[%emt 00:00:02]
[%clk 00:03:03]} 7. O-O {[%emt 00:00:01] [%clk 00:03:05]} c6 {[%emt 00:00:04]
[%clk 00:03:02]} 8. c4 {[%emt 00:00:02] [%clk 00:03:05]} Na6 {[%emt 00:00:02]
[%clk 00:03:01]} 9. Nbc3 {[%emt 00:00:02] [%clk 00:03:05]} Nc7 {[%emt 00:00:09]
[%clk 00:02:55]} 10. Re1 {[%emt 00:00:11] [%clk 00:02:56]} Rb8 {[%clk 00:02:56]}
11. Qa4 {[%emt 00:00:19] [%clk 00:02:40]} a6 {[%emt 00:00:05] [%clk 00:02:53]}
12. Qc2 {[%emt 00:00:10] [%clk 00:02:31]} b5 {[%emt 00:00:02] [%clk 00:02:54]}
13. b3 {[%emt 00:00:12] [%clk 00:02:21]} Bb7 {[%emt 00:00:05] [%clk 00:02:50]}
14. Bf4 {[%emt 00:00:08] [%clk 00:02:15]} Rc8 {[%emt 00:00:01] [%clk 00:02:52]}
15. Rad1 {[%emt 00:00:04] [%clk 00:02:13]} Qe8 {[%emt 00:00:11] [%clk 00:02:43]}
16. h3 {[%emt 00:00:15] [%clk 00:02:00]} Ba8 {[%emt 00:00:01] [%clk 00:02:44]}
17. Qb2 {[%emt 00:00:22] [%clk 00:01:39]} h6 {[%emt 00:00:13] [%clk 00:02:35]}
18. Ng3 {[%emt 00:00:04] [%clk 00:01:35]} b4 {[%emt 00:00:10] [%clk 00:02:27]}
19. Na4 {[%emt 00:00:04] [%clk 00:01:32]} a5 {[%emt 00:00:01] [%clk 00:02:28]}
20. Nb6 {[%emt 00:00:02] [%clk 00:01:32]} Na6 {[%emt 00:00:13] [%clk 00:02:17]}
21. Nxc8 {[%emt 00:00:04] [%clk 00:01:30]} Qxc8 {[%clk 00:02:18]} 22. Be5 {[%emt
00:00:08] [%clk 00:01:24]} Nb8 {[%emt 00:00:01] [%clk 00:02:19]} 23. Bxb8 {[%emt
00:00:18] [%clk 00:01:08]} Qxb8 {[%emt 00:00:02] [%clk 00:02:20]} 24. d5 {[%clk
00:01:09]} Bc5 {[%emt 00:00:22] [%clk 00:02:00]} 25. Ne4 {[%emt 00:00:19] [%clk
00:00:52]} Nxe4 {[%emt 00:00:04] [%clk 00:01:58]} 26. Bxe4 {[%clk 00:00:53]}
cxd5 {[%emt 00:00:01] [%clk 00:01:59]} 27. cxd5 {[%emt 00:00:01] [%clk
00:00:54]} e5 {[%emt 00:00:11] [%clk 00:01:50]} 28. d6 {[%emt 00:00:24] [%clk
00:00:32]} Bxe4 {[%emt 00:00:27] [%clk 00:01:25]} 29. Qxe5 {[%emt 00:00:09]
[%clk 00:00:25]} Bc2 {[%emt 00:00:14] [%clk 00:01:13]} 30. Qxc5 {[%emt 00:00:02]
[%clk 00:00:25]} Bxd1 {[%clk 00:01:14]} 31. Rxd1 {[%emt 00:00:01] [%clk
00:00:26]} Qd8 {[%emt 00:00:05] [%clk 00:01:11]} 32. d7 {[%emt 00:00:04] [%clk
00:00:24]} Kh7 {[%emt 00:00:01] [%clk 00:01:11]} 33. Qxf8 {[%emt 00:00:01] [%clk
00:00:24]} Qxf8 {[%clk 00:01:12]} 34. d8=Q {[%emt 00:00:02] [%clk 00:00:25]} 1-0

[Site "Europe Echecs"]